bitfinex/quotes_ETHUSD_20260313
["timestamp","ask_amount","ask_price","bid_price","bid_amount"]
[1773401225235,1.17536436,2127.0,2126.5,0.65346799]
[1773401228152,1.17536436,2127.0,2126.5,1.82910443]
[1773401228339,1.17536436,2127.0,2126.6,0.65346799]
[1773401230128,0.65534581,2127.2,2126.6,0.65346799]
[1773401231253,0.65534581,2127.2,2126.7,0.001]
[1773401231557,0.002,2127.0,2126.7,0.001]
[1773401233032,1.17736436,2127.0,2126.7,0.001]
[1773401234431,1.17736436,2127.0,2126.7,0.65446799]
[1773401234853,0.002,2127.0,2126.7,0.65446799]
[1773401237563,0.65534581,2127.0,2126.7,0.001]
[1773401239674,1.17541962,2126.9,2126.7,0.001]
[1773401241987,1.1774071,2127.0,2126.7,0.72397301]
[1773401244969,0.68625089,2127.0,2126.5,0.001]
[1773401245154,0.68625089,2127.0,2126.4,1.471]
[1773401245155,0.68625089,2127.0,2126.9,0.001]
[1773401245356,0.002,2126.8,2126.3,0.72297301]
[1773401245656,0.68625089,2126.8,2126.6,0.001]
[1773401246573,1.17553016,2126.7,2126.6,0.001]
[1773401248186,1.85978105,2126.7,2126.6,0.001]
[1773401251585,1.17553016,2126.7,2126.6,0.001]
[1773401253983,5.38822726,2126.8,2126.6,0.001]
[1773401254189,5.38822726,2126.8,2126.3,0.72297301]
[1773401255388,5.38822726,2126.8,2126.4,1.48]
[1773401258069,0.68425089,2126.7,2126.4,1.48]
[1773401258860,0.68425089,2126.7,2126.6,0.001]
[1773401260171,1.85978105,2126.7,2126.6,0.001]
[1773401265822,1.85978105,2126.7,2126.2,0.001]
[1773401265823,0.76618892,2126.6,2126.2,0.001]
[1773401266099,0.76618892,2126.6,2125.7,0.73902087]
[1773401266463,0.76618892,2126.6,2125.8,0.73802087]
[1773401267295,0.76618892,2126.4,2125.8,2.21402087]
[1773401267498,0.76618892,2126.4,2125.9,0.73802087]
[1773401269422,1.1757513,2126.3,2125.9,0.73802087]
[1773401269576,1.94194022,2126.3,2125.9,0.73802087]
[1773401273308,1.94194022,2126.3,2126.1,0.001]
[1773401273488,0.002,2126.2,2126.1,0.001]
[1773401274214,0.002,2126.4,2126.2,0.79453813]
[1773401274396,1.17566328,2126.5,2126.2,0.79453813]
[1773401274913,0.77418234,2126.5,2126.2,0.79453813]
[1773401275410,0.77618234,2126.7,2126.2,0.79453813]
[1773401277532,0.77418234,2126.5,2126.1,0.79553813]
[1773401278393,0.77418234,2126.5,2125.9,0.0480389]
[1773401278394,0.77418234,2126.5,2125.9,0.001]
[1773401279825,0.77418234,2126.5,2125.9,0.79553813]
[1773401279826,0.77418234,2126.3,2125.9,0.79553813]
[1773401281722,0.77418234,2126.1,2125.9,0.001]
[1773401282214,0.77418234,2126.1,2125.6,0.79553813]
[1773401282410,0.77418234,2126.1,2125.6,0.84258367]
[1773401283417,0.77418234,2126.1,2125.7,2.26953813]
[1773401284128,1.17591721,2126.0,2125.7,2.26953813]
[1773401285630,0.77418234,2125.9,2125.7,1.475]
[1773401286103,1.17602784,2125.8,2125.5,0.001]
[1773401286622,1.17602784,2125.8,2125.5,0.79553813]
[1773401286817,0.77418234,2125.7,2125.5,0.001]
[1773401288234,1.95031063,2125.7,2125.5,0.001]
[1773401288430,4.70422432,2125.8,2125.5,0.001]
[1773401288431,1.17607219,2125.8,2125.5,0.001]
[1773401288604,1.17607219,2125.8,2125.5,0.79553813]
[1773401289713,5.47778203,2126.1,2125.5,0.84258588]
[1773401290330,5.47778203,2126.1,2125.6,0.79453813]
[1773401290907,0.77418234,2126.0,2125.6,0.79453813]
[1773401291803,0.77418234,2126.0,2125.5,0.001]
[1773401292509,0.77418234,2125.8,2125.5,0.001]
[1773401293946,1.77418234,2125.8,2125.5,0.001]
[1773401294744,1.0,2125.8,2125.6,0.79453813]
[1773401295040,1.0,2125.8,2125.6,0.49805704]
[1773401295041,0.67211854,2125.8,2125.6,0.49805704]
[1773401295332,1.95008987,2126.1,2125.6,0.54510258]
[1773401295536,1.17590753,2126.1,2125.6,0.54510258]
[1773401295706,1.17590753,2126.1,2125.6,0.49805704]
[1773401296136,1.95008987,2126.1,2125.6,0.49805704]
[1773401297835,1.95008987,2126.1,2125.7,0.5050277]
[1773401298053,1.95006214,2126.1,2125.7,0.5050277]
[1773401298910,0.77418234,2126.0,2125.5,0.50829597]
[1773401299116,0.77418234,2126.0,2125.5,0.001]
[1773401299517,0.002,2125.9,2125.5,0.001]
[1773401299812,1.95026551,2125.7,2125.5,0.001]
[1773401300326,1.17608317,2125.7,2125.5,0.001]
[1773401300523,1.17605178,2125.8,2125.5,0.001]
[1773401301124,1.95217577,2125.9,2125.5,0.51495075]
[1773401301641,0.002,2125.9,2125.5,0.51495075]
[1773401301845,0.002,2125.9,2125.6,0.51611624]
[1773401302343,0.002,2125.9,2125.6,0.56316178]
[1773401302539,0.002,2125.9,2125.6,0.51611624]
[1773401303918,0.8253011,2125.9,2125.5,0.001]
[1773401306234,0.002,2125.9,2125.5,0.57461548]
[1773401306743,0.002,2125.9,2125.5,0.52756773]
[1773401306957,1.17797846,2125.9,2125.5,0.52756773]
[1773401307257,0.002,2125.9,2125.5,0.52756773]
[1773401307427,1.17797378,2125.9,2125.5,0.52756773]
[1773401308465,0.8233011,2125.8,2125.5,0.001]
[1773401310449,1.17604957,2125.8,2125.5,0.001]
[1773401311743,1.99935067,2125.8,2125.5,0.001]
[1773401312153,1.99935067,2125.8,2125.7,0.001]
[1773401312446,1.9994396,2125.6,2125.3,0.001]
[1773401312956,0.8233011,2125.6,2125.3,0.001]
[1773401313555,0.8233011,2125.6,2125.3,1.48]
[1773401317667,1.9994462,2125.6,2125.3,1.48]
[1773401317966,0.8233011,2125.6,2125.3,1.48]
[1773401320060,1.99944343,2125.6,2125.3,1.48]
[1773401320466,0.8233011,2125.6,2125.3,1.48]
[1773401320666,0.8233011,2125.6,2125.3,2.03280258]
[1773401323770,0.8233011,2125.6,2125.5,0.001]
[1773401324274,2.0014396,2125.6,2125.5,0.001]
[1773401326878,0.7964452,2125.5,2125.0,0.001]
[1773401327038,0.7964452,2125.5,2125.0,0.002]
[1773401327234,1.9745837,2125.6,2125.2,0.56698135]
[1773401327459,0.7964452,2125.5,2125.1,0.001]
[1773401327975,0.7964452,2125.5,2125.2,1.481]
[1773401329542,1.17624917,2125.4,2125.2,1.481]
[1773401329972,1.17624917,2125.4,2125.2,2.05109815]
[1773401330180,1.97268152,2125.5,2125.2,2.05109815]
[1773401330482,1.97268152,2125.5,2125.2,2.05209815]
[1773401331445,1.17620884,2125.5,2125.2,2.05209815]
[1773401331649,0.81251604,2125.4,2125.2,1.482]
[1773401332545,0.81251604,2125.4,2125.0,0.001]
[1773401332741,1.17620884,2125.5,2125.1,0.57610829]
[1773401333357,0.002,2125.6,2125.1,0.57610829]
[1773401333559,0.002,2125.6,2125.3,0.57756379]
[1773401333758,0.002,2125.6,2125.4,1.485]
[1773401333951,0.002,2125.6,2125.4,2.06256379]
[1773401334973,0.002,2125.6,2125.5,0.57900371]
[1773401339882,0.002,2125.8,2125.6,0.58595427]
[1773401341552,1.17786,2126.2,2125.7,0.58862048]
[1773401341880,1.99037604,2126.2,2125.8,0.82476579]
[1773401342057,0.81251604,2126.1,2125.8,0.82476579]
[1773401342975,0.002,2126.2,2125.9,0.82476579]
[1773401343172,0.81451604,2126.2,2125.9,2.31176579]
[1773401344054,1.17780978,2126.2,2126.0,0.82476579]
[1773401344578,1.17780978,2126.2,2125.9,1.487]
[1773401344755,1.99032582,2126.2,2125.9,1.487]
[1773401346580,0.81251604,2126.1,2125.9,1.487]
[1773401346778,0.81251604,2126.1,2125.6,0.82476579]
[1773401348083,0.81251604,2126.1,2125.7,1.488]
[1773401348458,1.98843325,2126.0,2125.7,1.488]
[1773401349692,1.98843325,2126.0,2125.8,0.001]
[1773401349877,1.99043325,2126.0,2125.8,0.001]
[1773401355093,0.81451604,2126.0,2125.8,0.001]
[1773401355298,0.002,2126.0,2125.8,0.82576579]
[1773401355669,1.17792128,2126.0,2125.8,0.001]
[1773401357199,0.81451604,2126.0,2125.8,0.001]
[1773401359796,0.002,2126.0,2125.8,0.001]
[1773401359982,0.002,2126.0,2125.8,0.82576579]
[1773401360781,0.88091687,2125.9,2125.8,0.001]
[1773401362088,1.17602784,2125.8,2125.5,0.86859815]
[1773401362293,2.05691112,2125.9,2125.5,2.04478907]
[1773401362599,1.1760094,2125.9,2125.6,0.86759815]
[1773401363099,1.1780094,2125.9,2125.6,0.86759815]
[1773401363411,1.1780094,2125.9,2125.8,0.001]
[1773401363881,0.88091687,2125.8,2125.5,0.001]
[1773401364204,1.17608317,2125.7,2125.5,0.001]
[1773401364376,1.17608317,2125.7,2125.5,0.86859815]
[1773401364973,0.002,2125.9,2125.5,0.86859815]
[1773401365173,0.002,2125.9,2125.7,0.86759815]
[1773401365408,1.17797299,2125.9,2125.7,0.86759815]
[1773401367502,0.002,2125.9,2125.7,0.86759815]
[1773401370313,0.88291687,2125.9,2125.6,1.486]
[1773401370690,0.88291687,2125.9,2125.4,0.001]
[1773401371012,0.88091687,2125.7,2125.1,0.001]
[1773401371317,0.88091687,2125.7,2124.9,0.86869815]
[1773401371519,0.88091687,2125.7,2125.0,0.86759815]
[1773401371884,0.88091687,2125.7,2125.0,2.32359815]
[1773401372117,0.88091687,2125.7,2124.9,0.58492657]
[1773401372416,0.88091687,2125.5,2124.9,0.58492657]
[1773401372710,0.88091687,2125.5,2125.0,0.58382657]
[1773401373511,0.88091687,2125.5,2125.0,2.03582657]
[1773401373888,0.88091687,2125.5,2124.9,0.0011]
[1773401374494,0.88091687,2125.3,2124.9,0.0011]
[1773401375016,0.88091687,2125.3,2124.9,0.58865704]
[1773401375394,0.88091687,2125.3,2124.9,2.04665704]
[1773401376018,0.88091687,2125.3,2125.0,0.58939409]
[1773401376211,0.88091687,2125.3,2125.2,0.001]
[1773401377034,1.17630452,2125.3,2125.2,0.001]
[1773401377792,0.88091687,2125.7,2125.3,0.23502003]
[1773401378021,0.88091687,2125.7,2125.2,0.001]
[1773401378224,0.88091687,2125.7,2125.2,0.23806909]
[1773401378589,2.05889692,2125.9,2125.2,0.23806909]
[1773401378897,2.05889692,2125.9,2125.4,0.23706909]
[1773401379414,0.88091687,2125.8,2125.4,0.23706909]
[1773401381498,1.17608317,2125.7,2125.4,0.23706909]
[1773401382032,2.05698563,2125.8,2125.4,0.23706909]
[1773401383434,2.05698563,2125.8,2125.2,0.24795912]
[1773401383435,0.88091687,2125.7,2125.2,0.24795912]
[1773401383605,2.05705537,2125.6,2125.2,0.24795912]
[1773401384228,1.1761385,2125.6,2125.2,0.24795912]
[1773401384577,2.05698173,2125.8,2125.3,0.24886382]
[1773401384747,2.05892747,2125.9,2125.3,0.24886382]
[1773401385236,0.86652317,2125.8,2125.3,0.24886382]
[1773401385532,2.042588,2125.8,2125.3,1.42513517]
[1773401385830,2.042588,2125.8,2125.4,0.25262075]
[1773401386028,2.042588,2125.8,2125.5,1.72962075]
[1773401387835,0.002,2125.6,2125.5,1.72962075]
[1773401389411,0.002,2125.6,2125.5,2.90581458]
[1773401389746,0.86652317,2125.7,2125.2,0.25887361]
[1773401389902,0.86652317,2125.5,2125.2,0.001]
[1773401391325,0.86652317,2125.5,2125.0,0.001]
[1773401392453,0.86652317,2125.5,2125.0,1.484]
[1773401392454,0.89098949,2125.3,2125.0,1.484]
[1773401393257,0.89098949,2125.3,2124.9,0.0011]
[1773401393921,0.89098949,2125.3,2124.7,0.0011]
[1773401394555,0.89098949,2125.1,2124.7,1.4851]
[1773401395151,0.89098949,2125.1,2124.7,1.4862]
[1773401396668,0.89098949,2124.9,2124.7,1.4862]
[1773401397179,1.17647058,2125.0,2124.6,0.27414271]
[1773401397465,0.89098949,2125.3,2124.7,0.27304271]
[1773401398751,1.17635987,2125.2,2124.8,1.485]
[1773401398941,0.89098949,2125.2,2124.8,1.485]
[1773401400358,0.89098949,2125.2,2124.7,0.27304271]
[1773401400563,4.70501405,2125.4,2124.7,0.27776756]
[1773401400564,0.002,2125.4,2124.7,0.27776756]
[1773401400768,2.06729401,2125.3,2124.7,0.27776756]
[1773401400967,0.89098949,2125.2,2124.7,0.27776756]
[1773401401188,0.89098949,2125.2,2124.7,1.45439221]
[1773401401553,0.89098949,2125.2,2124.8,0.2793039]
[1773401401754,1.17630452,2125.3,2124.8,0.2793039]
[1773401402888,1.17630452,2125.3,2124.8,1.45587376]
[1773401403185,1.17630452,2125.3,2124.9,0.28081822]
[1773401403968,1.17630452,2125.3,2124.7,2.6616162]
[1773401403969,0.89098949,2125.2,2124.7,2.94393494]
[1773401404277,2.06928183,2125.4,2124.8,0.28380538]
[1773401404598,0.002,2125.4,2124.8,0.28380538]
[1773401405288,0.002,2125.4,2125.0,0.28526898]
[1773401406459,0.89298949,2125.8,2125.0,0.28671618]
[1773401407219,1.17608317,2125.7,2124.7,2.94834268]
[1773401407417,0.89098949,2125.6,2124.7,2.94834268]
[1773401407785,0.89098949,2125.6,2124.8,0.28815046]
[1773401408827,0.89098949,2125.6,2124.7,2.6616265]
[1773401409183,0.89098949,2125.6,2124.7,2.95119983]
[1773401409387,0.89098949,2125.4,2124.7,1.485]
[1773401410933,0.89098949,2125.4,2124.7,1.77736642]
[1773401411139,0.89098949,2125.4,2124.7,2.95400109]
[1773401411506,0.89098949,2125.2,2124.7,1.77736642]
[1773401411907,0.89098949,2125.2,2124.7,1.485]
[1773401412642,0.89098949,2125.2,2124.8,0.29509317]
[1773401413349,0.89098949,2125.2,2124.7,1.485]
[1773401413638,2.06740471,2125.1,2124.9,0.0011]
[1773401415608,2.06746007,2125.0,2124.9,0.0011]
[1773401416551,0.89098949,2124.9,2124.7,1.485]
[1773401416852,0.89098949,2124.9,2124.6,0.0011]
[1773401417706,2.06757081,2124.8,2124.6,0.0011]
[1773401422359,0.93000995,2124.7,2123.6,4.708763]
[1773401423356,0.93000995,2124.5,2123.7,1.48425335]
[1773401423526,0.93000995,2124.5,2123.8,0.00125335]
[1773401424949,0.93000995,2124.5,2123.7,1.483]
[1773401425145,0.93000995,2124.5,2123.7,1.48498554]
[1773401425548,0.93000995,2124.3,2123.8,1.17984413]
[1773401426083,0.93000995,2124.3,2123.8,1.18094413]
[1773401427179,0.93000995,2124.3,2123.8,0.00380881]
[1773401427564,0.93000995,2124.3,2123.9,0.00412804]
[1773401427763,2.10674317,2124.6,2123.9,0.00412804]
[1773401427964,0.93000995,2124.5,2123.8,0.00522804]
[1773401428148,0.93000995,2124.5,2123.9,0.00412804]
[1773401429549,1.17680286,2124.4,2123.9,0.00412804]
[1773401429866,0.93000995,2124.3,2123.9,0.00412804]
[1773401430264,0.93000995,2124.3,2123.8,0.00730032]
[1773401430665,0.93000995,2124.3,2123.8,0.0011]
[1773401431560,0.93000995,2124.1,2123.8,0.0011]
[1773401433888,0.93000995,2124.0,2123.8,0.0011]
[1773401435272,2.10696363,2124.2,2123.8,0.0011]
[1773401435669,0.93000995,2124.2,2123.8,0.0106004]
[1773401435871,0.93000995,2124.2,2123.8,1.18771895]
[1773401436093,0.93000995,2124.2,2123.9,0.0095004]
[1773401436388,5.63152456,2124.3,2123.9,0.0095004]
[1773401436586,2.10098309,2124.2,2123.8,0.0011]
[1773401436789,2.10098309,2124.2,2123.8,0.8523602]
[1773401437226,2.10098309,2124.2,2123.8,2.02949489]
[1773401437363,0.92406489,2124.2,2123.8,2.02949489]
[1773401437997,2.1009973,2124.2,2123.8,2.02949489]
[1773401438176,2.1009973,2124.2,2123.8,0.8523602]
[1773401438376,0.92406489,2124.2,2123.8,2.02945604]
[1773401438587,0.92406489,2124.2,2123.8,2.02949094]
[1773401438588,2.1009804,2124.2,2123.8,2.02949094]
[1773401438784,0.92406489,2124.2,2123.8,2.02949094]
[1773401438973,2.10090813,2124.4,2123.9,0.8512602]
[1773401439166,0.92406489,2124.3,2123.9,0.8512602]
[1773401439495,0.92406489,2124.3,2124.0,0.0011]
[1773401439697,0.001,2124.2,2124.0,0.0011]
[1773401440514,0.92506489,2125.2,2124.2,0.8512602]
[1773401440675,0.92406489,2125.0,2124.2,0.8512602]
[1773401440869,0.92406489,2125.0,2124.3,2.3382602]
[1773401441284,0.92406489,2125.0,2124.4,0.8512602]
[1773401443198,2.10145017,2125.2,2124.6,0.8512602]
[1773401443695,2.10145628,2125.2,2124.6,0.8512602]
[1773401444076,0.92406489,2125.1,2124.6,0.8512602]
[1773401444685,0.92406489,2125.1,2124.5,1.17674746]
[1773401445085,0.92406489,2125.1,2124.4,5.55845296]
[1773401445086,0.92406489,2125.1,2124.4,2.02805558]
[1773401445377,1.12358493,2124.9,2124.4,2.02805558]
[1773401445574,1.12358493,2124.9,2124.4,2.02806298]
[1773401445778,1.12358493,2124.9,2124.4,1.17680278]
[1773401446084,1.12358493,2124.9,2124.3,2.66385325]
[1773401447381,1.12358493,2124.7,2124.3,2.66385325]
[1773401447582,1.12358493,2124.7,2124.3,3.79241045]
[1773401448706,1.12358493,2124.7,2124.0,0.0011]
[1773401448905,1.12358493,2124.7,2124.0,1.17810155]
[1773401449311,1.12358493,2124.7,2124.0,2.30665875]
[1773401449687,1.12358493,2124.5,2124.0,0.0011]
[1773401450115,1.12358493,2124.5,2124.0,1.17811825]
[1773401450408,1.12358493,2124.5,2123.9,2.6640338]
[1773401450609,1.12358493,2124.5,2123.9,2.66407919]
[1773401450820,1.12358493,2124.5,2123.9,1.487]
[1773401451324,1.12358493,2124.5,2123.9,2.66407455]
[1773401451524,1.12358493,2124.5,2123.9,2.66407314]
[1773401451712,1.16461347,2124.3,2123.9,2.66407314]
[1773401451901,1.16461347,2124.5,2124.0,1.20163387]
[1773401452096,1.16461347,2124.4,2123.9,2.66407314]
[1773401453108,2.34141679,2124.4,2123.9,2.66407314]
[1773401453510,2.34141679,2124.4,2124.3,0.0011]
[1773401454091,1.16461347,2124.4,2124.3,0.0011]
[1773401455111,2.34136198,2124.5,2124.3,0.0011]
[1773401458224,1.16461347,2124.4,2124.0,0.0011]
[1773401460193,1.16461347,2124.2,2124.0,0.0011]
[1773401462631,2.34153081,2124.2,2124.0,0.0011]
[1773401463207,1.16461347,2124.2,2124.0,0.0011]
[1773401463620,2.34152722,2124.2,2124.0,0.0011]
[1773401466411,1.16461347,2124.2,2124.0,0.0011]
[1773401466638,2.34152741,2124.2,2124.0,0.0011]
[1773401468339,1.16461347,2124.1,2123.7,0.0011]
[1773401468540,1.16461347,2124.1,2123.4,1.20163387]
[1773401468858,1.17691394,2124.2,2123.6,1.20163387]
[1773401469150,2.34152741,2124.2,2123.6,1.20163387]
[1773401470148,2.34152741,2124.2,2123.7,1.20163387]
[1773401470530,1.16461347,2124.2,2123.7,1.20163387]
[1773401470731,2.34153389,2124.2,2123.7,1.20163387]
[1773401471236,1.16461347,2124.4,2123.7,1.20163387]
[1773401471813,1.16461347,2124.4,2123.9,1.20163387]
[1773401472015,5.87148691,2124.6,2123.9,1.20163387]
[1773401472210,5.87148691,2124.6,2124.0,1.20163387]
[1773401472543,1.16461347,2124.5,2124.0,1.20163387]
[1773401472920,1.16461347,2124.5,2123.8,2.68863387]
[1773401473119,1.16461347,2124.5,2123.8,3.86573473]
[1773401473338,1.16461347,2124.5,2123.9,1.20163387]
[1773401474647,2.34141633,2124.4,2123.9,1.20163387]
[1773401474835,2.34141633,2124.4,2123.9,2.37870833]
[1773401475031,2.34141633,2124.4,2124.0,1.20163387]
[1773401477424,1.16461347,2124.3,2123.9,1.20163387]
[1773401477752,1.16461347,2124.3,2123.8,1.487]
[1773401478526,1.16461347,2124.1,2123.8,1.487]
[1773401478818,1.16461347,2124.1,2123.9,0.0011]
[1773401479254,0.001,2124.2,2123.9,0.0011]
[1773401479554,1.16561347,2124.2,2123.9,0.0011]
[1773401479726,1.16561347,2124.2,2123.9,1.20273387]
[1773401479928,0.001,2124.2,2124.0,1.20163387]
[1773401480336,0.001,2124.2,2123.9,0.0011]
[1773401480641,1.16561347,2124.2,2123.9,1.11102839]
[1773401481750,0.001,2124.2,2123.9,1.11102839]
[1773401482138,0.001,2124.2,2124.0,1.10992839]
[1773401482546,2.34976739,2124.2,2123.9,0.0011]
[1773401482723,1.17791794,2124.2,2123.9,0.0011]
[1773401482928,1.17184945,2124.1,2123.9,0.0011]
[1773401483556,2.34948801,2124.7,2124.1,1.10992839]
[1773401483754,1.17184945,2124.6,2124.1,1.10992839]
[1773401483955,1.17184945,2124.5,2124.1,1.10992839]
[1773401484256,1.17184945,2124.5,2123.9,1.11102839]
[1773401485830,1.17184945,2124.3,2123.9,1.11102839]
[1773401487860,2.34872861,2124.3,2123.9,1.11102839]
[1773401489554,1.17184945,2124.2,2123.9,0.0011]
[1773401490059,2.34878631,2124.2,2123.9,1.11102839]
[1773401491568,2.34878631,2124.2,2124.0,0.0011]
[1773401492860,1.17184945,2124.6,2124.0,1.11102839]
[1773401493354,1.17764226,2124.7,2124.0,1.11102839]
[1773401493578,2.34949171,2124.7,2124.0,1.11102839]
[1773401493778,1.17764226,2124.7,2124.0,1.11102839]
[1773401493958,0.001,2124.7,2124.2,1.10992839]
[1773401496175,0.001,2124.7,2124.3,1.17685825]
[1773401496380,0.001,2124.7,2124.4,1.10992839]
[1773401499180,0.001,2124.7,2124.4,2.28672716]
[1773401499384,0.001,2124.7,2124.4,1.10992839]
[1773401499883,1.17284945,2124.7,2124.4,1.10992839]
[1773401500384,0.001,2124.7,2124.4,1.10992839]
[1773401502393,1.17184945,2125.1,2124.5,1.10992839]
[1773401502598,0.001,2125.2,2124.6,1.17669208]
[1773401502599,1.17737742,2125.2,2124.6,1.17669208]
[1773401502904,1.17184945,2125.1,2124.7,1.10992839]
[1773401503197,1.17184945,2125.1,2124.6,1.17669208]
[1773401503410,1.17184945,2125.1,2124.7,1.10992839]
[1773401504094,1.17737742,2125.2,2124.7,1.10992839]
[1773401504095,0.001,2125.2,2124.7,1.10992839]
[1773401504873,1.17284945,2125.2,2124.9,1.29069925]
[1773401505979,0.001,2125.2,2124.9,1.29069925]
[1773401506381,1.1741881,2125.8,2125.1,1.29069925]
[1773401506902,1.1741881,2125.8,2125.3,1.29069925]
[1773401506903,0.002,2125.8,2125.3,1.29069925]
[1773401509102,1.1741881,2125.8,2125.3,1.29069925]
[1773401509303,1.1741881,2125.8,2125.0,1.496]
[1773401511106,1.202873,2125.6,2125.0,1.496]
[1773401513111,1.17619383,2125.5,2125.0,1.496]
[1773401513322,1.17619383,2125.5,2125.0,2.67127752]
[1773401513323,1.202873,2125.4,2125.0,2.67127752]
[1773401513481,1.202873,2125.4,2125.0,2.70553244]
[1773401513687,2.3790338,2125.6,2125.1,1.17527752]
[1773401514396,1.1761608,2125.6,2125.1,1.17527752]
[1773401514628,2.3790338,2125.6,2125.1,1.17527752]
[1773401515624,1.202873,2125.5,2125.0,1.496]
[1773401515812,1.202873,2125.5,2125.0,2.67127752]
[1773401516488,2.37900219,2125.7,2125.1,1.17527752]
[1773401516891,2.37900219,2125.7,2125.2,1.17627752]
[1773401517091,1.204873,2125.6,2125.2,0.001]
[1773401517520,2.37906683,2125.5,2125.2,0.001]
[1773401518517,1.202873,2125.5,2125.2,0.001]
[1773401518720,1.17817968,2125.6,2125.2,0.001]
[1773401518888,2.38105268,2125.6,2125.2,0.001]
[1773401520423,2.38105268,2125.6,2125.2,1.17627752]
[1773401521921,1.17817968,2125.6,2125.2,0.001]
[1773401522123,1.202873,2125.5,2125.2,0.001]
[1773401524103,2.37912217,2125.4,2125.2,0.001]
[1773401524601,2.37912217,2125.4,2124.9,1.17527752]
[1773401524811,1.202873,2125.3,2124.8,1.17527752]
[1773401526820,2.37906683,2125.5,2124.9,1.17527752]
[1773401527119,2.38102333,2125.6,2124.9,1.17527752]
[1773401528230,1.202873,2125.5,2124.9,1.17527752]
[1773401529231,1.202873,2125.5,2125.1,1.17527752]
[1773401529602,2.38104303,2125.6,2125.1,1.17527752]
[1773401530127,2.38104303,2125.6,2125.1,1.17627752]
[1773401530297,0.002,2125.4,2125.1,1.17627752]
[1773401531128,0.002,2125.4,2125.1,2.35268442]
[1773401531535,0.002,2125.4,2125.2,1.17527752]
[1773401531707,0.002,2125.4,2125.1,0.001]
[1773401531909,0.002,2125.4,2125.1,1.17627752]
[1773401533135,1.204873,2125.4,2125.1,0.001]
[1773401533429,1.204873,2125.4,2125.1,2.35267186]
[1773401533803,0.002,2125.4,2125.1,2.35267186]
[1773401534003,0.002,2125.4,2125.2,1.17527752]
[1773401537525,0.002,2125.4,2125.2,2.35163374]
[1773401537727,1.1780418,2125.8,2125.3,1.17527752]
[1773401537931,1.17804248,2125.8,2125.4,1.17527752]
[1773401538227,1.202873,2125.7,2125.4,1.17527752]
[1773401538435,1.202873,2125.7,2125.3,1.497]
[1773401539034,1.202873,2125.7,2125.3,2.67227752]
[1773401539437,2.37900001,2125.7,2125.3,2.67227752]
[1773401540510,1.202873,2125.6,2125.3,2.67227752]
[1773401541440,2.37904133,2125.6,2125.3,2.67227752]
[1773401543959,2.37904133,2125.6,2125.5,0.001]
[1773401548216,1.15091768,2125.5,2125.1,0.001]
[1773401548418,1.15091768,2125.5,2125.1,1.21122808]
[1773401548843,1.17624917,2125.4,2125.1,1.21122808]
[1773401549037,2.32715634,2125.5,2125.1,1.21122808]
[1773401549240,1.17811688,2125.7,2125.2,1.21022808]
[1773401549453,1.15091768,2125.6,2125.2,1.21022808]
[1773401551055,1.17617988,2125.6,2125.2,1.21022808]
[1773401551353,1.17617988,2125.6,2125.3,1.21022808]
[1773401551756,2.32709756,2125.6,2125.3,1.21022808]
[1773401552925,1.17617988,2125.6,2125.3,1.21022808]
[1773401553125,1.17809109,2125.7,2125.4,1.21022808]
[1773401553325,2.32900877,2125.7,2125.4,1.21022808]
[1773401555628,2.32900877,2125.7,2125.2,1.21022808]
[1773401556357,1.15091768,2125.6,2125.2,1.21022808]
[1773401557638,1.17618333,2125.6,2125.3,1.21022808]
[1773401558361,1.17618333,2125.6,2125.4,0.001]
[1773401558529,1.17618333,2125.6,2125.4,1.21122808]
[1773401558849,0.002,2125.5,2125.4,1.21122808]
[1773401560257,0.002,2125.5,2125.1,1.21122808]
[1773401560258,1.15291768,2125.5,2125.1,1.21122808]
[1773401561056,1.15291768,2125.5,2125.2,1.21022808]
[1773401562067,2.32914392,2125.5,2125.2,1.21022808]
[1773401562528,2.32914392,2125.5,2125.1,0.001]
[1773401562529,1.17822624,2125.5,2125.1,0.001]
[1773401562733,1.15091768,2125.4,2125.1,0.001]
[1773401564261,1.15091768,2125.2,2125.1,0.001]
[1773401564642,1.15091768,2125.4,2125.1,0.001]
[1773401564827,0.002,2125.5,2125.2,1.11833727]
[1773401566740,0.002,2125.5,2125.2,2.29469141]
[1773401566950,0.002,2125.5,2125.3,1.16538944]
[1773401567165,0.002,2125.5,2125.3,1.11833727]
[1773401568564,0.002,2125.5,2125.3,1.16538945]
[1773401571074,0.002,2125.5,2125.3,1.11933727]
[1773401571741,0.002,2125.7,2125.4,1.1198768]
[1773401572474,0.002,2125.7,2125.4,1.15536027]
[1773401572895,0.002,2125.7,2125.6,1.1198768]
[1773401573374,4.70555994,2126.1,2125.5,1.17619383]
[1773401573375,0.002,2126.1,2125.7,1.1198768]
[1773401573740,1.17786501,2126.1,2125.8,1.1198768]
[1773401573960,0.002,2126.1,2125.8,1.1198768]
[1773401575172,1.17787047,2126.1,2125.8,1.1198768]
[1773401575849,2.28292593,2126.1,2125.8,1.1198768]
[1773401576789,0.002,2126.1,2125.8,1.1198768]
[1773401577077,0.002,2126.1,2125.7,2.6118768]
[1773401577078,1.10705546,2126.1,2125.7,2.6118768]
[1773401577280,0.002,2126.4,2125.7,2.66807763]
[1773401577464,1.10705546,2126.4,2125.8,1.1198768]
[1773401577880,0.002,2126.4,2125.8,1.1198768]
[1773401579787,0.002,2126.4,2126.0,1.1198768]
[1773401581760,0.002,2126.4,2126.1,1.1198768]
[1773401583291,1.17751989,2126.8,2126.3,1.1198768]
[1773401583458,1.17751989,2126.8,2126.4,1.1198768]
[1773401583791,2.28257535,2126.8,2126.4,1.1198768]
[1773401584160,1.10705546,2126.8,2126.4,1.1198768]
[1773401584359,0.002,2126.8,2126.4,1.1198768]
[1773401584590,0.002,2126.8,2126.5,1.1198768]
[1773401586393,0.002,2126.8,2126.6,1.1198768]
[1773401586689,2.28033055,2127.2,2126.6,1.1198768]
[1773401587984,2.28033055,2127.2,2126.2,4.70319621]
[1773401587985,1.10505546,2127.1,2126.0,2.29577529]
[1773401588175,1.10505546,2127.1,2126.1,1.1198768]
[1773401588690,1.10505546,2126.9,2126.1,1.1198768]
[1773401588891,1.10505546,2126.9,2126.2,1.1198768]
[1773401589963,1.10505546,2126.9,2126.0,1.493]
[1773401589964,1.10505546,2127.0,2126.0,2.6128768]
[1773401590492,1.10505546,2126.8,2126.0,2.6128768]
[1773401590695,1.10505546,2126.8,2126.0,1.493]